bitfinex/quotes_ETHUSD_20250404
["timestamp","ask_amount","ask_price","bid_price","bid_amount"]
[1743767251078,7.71633,1772.8,1772.5,0.05641111]
[1743767251400,3.84543,1772.9,1772.7,5.64082]
[1743767251401,0.05,1772.9,1772.7,5.64082]
[1743767251600,0.05,1772.9,1772.7,5.69722635]
[1743767251973,0.05,1772.9,1772.8,5.64079]
[1743767254205,0.05,1772.9,1772.8,5.69718621]
[1743767254576,0.05,1772.9,1772.8,6.12283628]
[1743767254804,0.05,1772.9,1772.8,5.69718621]
[1743767255877,0.05,1772.9,1772.8,3.0]
[1743767256095,0.05,1772.9,1772.6,3.0]
[1743767256298,0.05,1772.9,1772.6,8.64141]
[1743767256799,0.05,1772.9,1772.8,5.64079]
[1743767257407,0.05,1772.9,1772.8,6.82535932]
[1743767258403,0.05,1772.9,1772.8,5.69718787]
[1743767259197,0.05,1772.9,1772.8,31.01379]
[1743767260110,0.05,1772.9,1772.8,31.43267432]
[1743767260277,0.05,1772.9,1772.8,34.43267432]
[1743767261398,0.05,1772.9,1772.8,28.79188432]
[1743767261604,0.05,1772.9,1772.8,34.43267432]
[1743767261912,0.05,1772.9,1772.8,31.43267432]
[1743767262110,0.05,1772.9,1772.8,25.373]
[1743767262516,0.05,1772.9,1772.8,31.01379]
[1743767263328,0.05,1772.9,1772.8,25.373]
[1743767263518,1.6131,1772.9,1772.8,25.373]
[1743767263718,1.6131,1772.9,1772.3,0.41279512]
[1743767264018,9.32931,1772.9,1772.5,11.28331]
[1743767264205,2.25642,1772.8,1772.3,8.64226]
[1743767264404,4.513,1772.7,1772.3,8.64226]
[1743767264712,2.25703,1772.3,1772.1,25.37]
[1743767265092,1.655,1772.5,1772.2,5.6426]
[1743767265310,7.963,1772.5,1772.3,5.64212]
[1743767265502,5.46,1772.6,1772.5,5.64174]
[1743767265703,7.71657,1772.6,1772.3,7.20482]
[1743767265917,1.5317,1772.5,1772.2,5.64258]
[1743767266088,1.5317,1772.5,1772.3,5.64222]
[1743767266483,1.5317,1772.5,1772.2,11.28516]
[1743767266709,5.46,1772.6,1772.4,5.64191]
[1743767266896,5.46,1772.6,1772.3,5.64233]
[1743767267215,5.46,1772.6,1772.4,5.64202]
[1743767267415,5.46,1772.6,1772.3,11.2845]
[1743767267720,5.46,1772.6,1772.4,5.64196]
[1743767267919,5.46,1772.6,1772.3,5.64232]
[1743767268086,2.25688,1772.4,1772.1,25.37]
[1743767268419,5.46,1772.6,1772.3,5.64237]
[1743767268816,5.46,1772.6,1772.1,31.01291]
[1743767269024,2.25688,1772.4,1772.1,25.37]
[1743767269324,5.46,1772.8,1772.5,5.64174]
[1743767269693,5.46,1772.8,1772.5,11.28336]
[1743767270018,5.46,1772.8,1772.5,5.64162]
[1743767270210,7.71632,1772.8,1772.4,11.28397]
[1743767270407,5.46,1772.8,1772.5,5.69791097]
[1743767271929,5.46,1772.8,1772.5,11.33952097]
[1743767272115,5.46,1772.8,1772.6,5.64141]
[1743767272314,5.46,1772.8,1772.5,7.19557068]
[1743767272633,5.46,1772.8,1772.4,8.64193]
[1743767272833,5.46,1772.8,1772.4,3.0]
[1743767273042,5.46,1772.8,1772.5,5.64162]
[1743767273349,1.5446,1772.7,1772.1,25.37]
[1743767273656,2.25663,1772.6,1772.2,5.6426]
[1743767273836,12.36653,1772.7,1772.3,5.64226]
[1743767274015,7.8536,1772.7,1772.2,5.64267]
[1743767274220,2.25668,1772.6,1772.1,31.01286]
[1743767274428,2.25668,1772.6,1772.2,5.69897246]
[1743767274840,2.25666,1772.6,1772.2,5.69897246]
[1743767275042,2.25666,1772.6,1772.2,11.34151246]
[1743767275230,12.36658,1772.7,1772.3,5.64225]
[1743767275429,7.8536,1772.7,1772.2,3.7275702]
[1743767275630,7.8536,1772.7,1772.5,5.6417]
[1743767275836,0.05,1772.9,1772.5,0.05641163]
[1743767276020,0.05,1772.9,1772.7,5.64091]
[1743767276424,0.05,1772.9,1772.5,6.05538254]
[1743767276627,0.05,1772.9,1772.6,5.64141]
[1743767276824,0.05,1772.9,1772.2,8.20685125]
[1743767277022,0.05,1772.9,1772.4,5.64199]
[1743767277023,2.25641,1772.8,1772.4,5.64199]
[1743767277438,2.25641,1772.8,1772.4,5.64195]
[1743767277636,2.30621,1772.9,1772.6,5.6413]
[1743767277637,0.05,1772.9,1772.6,5.6413]
[1743767278142,2.3062,1772.9,1772.5,11.28336]
[1743767278323,2.3062,1772.9,1772.6,5.6414]
[1743767278651,0.05,1772.9,1772.7,5.64097]
[1743767279154,0.05,1772.9,1772.6,11.28272]
[1743767279368,0.05,1772.9,1772.7,5.64109]
[1743767280052,0.05,1772.9,1772.8,5.64079]
[1743767280249,0.05,1772.9,1772.7,5.64099]
[1743767280452,0.05,1772.9,1772.7,5.69739395]
[1743767280637,0.05,1772.9,1772.8,5.64079]
[1743767280830,0.05,1772.9,1772.7,11.28197]
[1743767281045,0.05,1772.9,1772.7,12.5229642]
[1743767281247,0.05,1772.9,1772.7,6.8819842]
[1743767281427,0.05,1772.9,1772.7,5.64096]
[1743767281824,0.05,1772.9,1772.5,25.372]
[1743767282026,4.56247,1772.9,1772.5,25.372]
[1743767282226,0.05,1772.9,1772.6,11.28254]
[1743767282443,4.56246,1772.9,1772.5,36.65546]
[1743767282648,2.3062,1772.9,1772.5,40.321006]
[1743767282860,0.05,1772.9,1772.6,5.69768871]
[1743767283060,2.30628,1772.9,1772.5,40.320856]
[1743767283263,4.56258,1772.9,1772.5,34.679176]
[1743767283558,5.80542,1773.5,1772.5,34.679176]
[1743767283559,1.5712,1774.0,1773.7,5.63778]
[1743767283756,1.5712,1774.0,1773.8,5.63761]
[1743767283954,7.0937,1774.4,1773.8,10.3545822]
[1743767284130,7.0937,1774.4,1773.8,11.95382342]
[1743767284324,1e-05,1773.9,1773.8,11.89745122]
[1743767285134,1e-05,1773.9,1773.8,15.64993097]
[1743767285856,1e-05,1773.9,1773.8,11.89745122]
[1743767287265,5.46,1775.0,1774.7,5.63475]
[1743767287470,6.9828,1775.3,1774.8,9.38690975]
[1743767287676,1e-05,1774.9,1774.8,14.10445218]
[1743767287830,1.6168,1775.5,1774.8,14.10445218]
[1743767287831,1.6168,1775.5,1775.1,5.63337]
[1743767288066,1.6168,1775.5,1775.3,5.63272]
[1743767288269,1.6168,1775.5,1775.2,9.38557975]
[1743767288432,1.6168,1775.5,1775.2,5.6331]
[1743767288636,1.6168,1775.5,1775.4,3.75247975]
[1743767288844,7.06,1775.8,1775.5,5.63194]
[1743767289045,0.05,1775.9,1775.4,3.75247975]
[1743767289244,0.12792842,1775.7,1775.6,9.38436975]
[1743767289475,0.13003684,1775.8,1775.7,8.63158]
[1743767289676,0.13003684,1775.8,1775.7,12.32708076]
[1743767289872,5.51,1775.9,1775.5,25.356]
[1743767290080,2.25256,1775.8,1775.5,25.356]
[1743767290370,3.89095089,1775.7,1775.5,25.356]
[1743767290773,1.63827089,1775.7,1775.5,25.356]
[1743767291357,0.12947089,1775.7,1775.5,30.98801]
[1743767291559,2.25251,1775.8,1775.5,25.356]
[1743767291752,0.12968876,1775.6,1775.5,25.356]
[1743767291957,2.25272,1775.7,1775.5,25.356]
[1743767292288,0.12942749,1775.6,1775.5,25.356]
[1743767292663,2.25251,1775.8,1775.5,25.356]
[1743767292863,0.12942749,1775.6,1775.5,25.356]
[1743767293064,2.25251,1775.8,1775.5,25.356]
[1743767293264,0.12942749,1775.6,1775.5,25.356]
[1743767293465,7.0802,1775.9,1775.6,5.63186]
[1743767293641,2.25251,1775.8,1775.5,25.356]
[1743767293846,2.25275,1775.6,1775.5,25.356]
[1743767294169,15.7636,1775.6,1774.8,9.32968076]
[1743767294353,2.25321,1775.3,1774.8,11.26847]
[1743767294558,3.89887,1775.2,1774.7,34.547215]
[1743767294758,2.25342,1775.1,1774.7,33.98374]
[1743767295202,2.25353,1775.0,1774.7,25.349]
[1743767295553,2.25365,1774.9,1774.7,25.349]
[1743767296373,4.50741,1774.9,1774.7,25.349]
[1743767296574,2.25365,1774.9,1774.7,25.349]
[1743767296953,2.25352,1775.0,1774.7,25.349]
[1743767297185,2.25345,1775.1,1774.7,30.98356]
[1743767297353,2.2534,1775.1,1774.7,25.349]
[1743767297764,7.1056,1775.2,1774.7,25.349]
[1743767298086,3.0,1775.5,1774.9,3.69550076]
[1743767298087,1.5715,1775.5,1774.9,3.69550076]
[1743767298292,8.0865,1775.5,1774.9,9.32959076]
[1743767298476,2.25322,1775.3,1774.9,3.69550076]
[1743767298684,2.25347,1775.1,1774.7,28.349]
[1743767298981,2.25347,1775.1,1774.7,25.349]
[1743767298982,1.5649,1775.0,1774.7,25.349]
[1743767299204,2.25365,1774.9,1774.7,25.349]
[1743767299362,4.50741,1774.9,1774.7,25.349]
[1743767299563,3.81846,1775.0,1774.7,25.349]
[1743767299761,1.5649,1775.0,1774.7,30.98363]
[1743767300067,3.8185,1775.0,1774.7,25.349]
[1743767300667,6.07209,1775.0,1774.7,25.349]
[1743767300879,2.25366,1774.9,1774.7,25.349]
[1743767302605,4.50737,1774.9,1774.7,25.349]
[1743767302765,2.25377,1774.8,1774.7,25.349]
[1743767303364,2.25366,1774.9,1774.7,25.349]
[1743767303591,2.25377,1774.8,1774.7,25.349]
[1743767303795,2.25366,1774.9,1774.7,25.349]
[1743767304145,2.25377,1774.8,1774.7,25.349]
[1743767304803,4.50738,1774.9,1774.7,25.349]
[1743767305016,2.25366,1774.9,1774.7,25.349]
[1743767305218,2.25377,1774.8,1774.7,25.349]
[1743767306001,1.6558,1774.9,1774.6,5.63476]
[1743767306203,1.6558,1774.9,1774.6,6.198406]
[1743767306399,11.944,1775.1,1774.9,5.63399]
[1743767306400,5.46,1775.1,1774.9,5.63399]
[1743767306603,5.46,1775.1,1775.0,5.6338]
[1743767306767,5.46,1775.1,1774.6,3.0]
[1743767306768,2.25369,1774.9,1774.6,3.0]
[1743767306971,5.46,1775.1,1774.5,0.05634531]
[1743767307169,5.46,1775.1,1774.9,5.63396]
[1743767307898,5.46,1775.1,1774.6,8.63506]
[1743767308221,2.2536,1775.0,1774.6,8.63506]
[1743767308402,2.25365,1774.9,1774.6,5.63506]
[1743767308769,2.25365,1774.9,1774.5,5.63528]
[1743767309008,2.25385,1774.8,1774.4,11.2711]
[1743767309189,2.25385,1774.8,1774.5,5.63535]
[1743767309512,8.015,1774.9,1774.5,1.127089]
[1743767309687,8.015,1774.9,1774.7,5.6346]
[1743767310001,8.015,1774.9,1774.4,5.63559]
[1743767310208,8.015,1774.9,1774.2,1.9202755]
[1743767310388,2.25414,1774.6,1774.2,11.27246]
[1743767310600,5.46,1774.8,1774.3,5.63596]
[1743767310923,5.46,1774.8,1774.2,14.27268]
[1743767311073,5.46,1774.8,1774.6,5.63495]
[1743767311274,5.46,1774.8,1774.6,11.26986]
[1743767311609,5.46,1774.8,1774.6,5.63491]
[1743767311819,7.71378,1774.8,1774.5,11.27058]
[1743767312045,5.46,1774.8,1774.6,5.63503]
[1743767312327,5.46,1774.8,1774.5,5.63524]
[1743767312627,2.25399,1774.7,1774.3,5.63598]
[1743767312926,2.25406,1774.6,1774.3,5.63598]
[1743767313279,5.46,1774.8,1774.1,1.541]
[1743767313477,2.25425,1774.5,1774.1,5.63653]
[1743767313733,2.25422,1774.5,1774.1,14.531263]
[1743767314020,2.25422,1774.5,1774.1,14.9640607]
[1743767314523,2.25422,1774.5,1774.0,25.342]
[1743767314524,2.25453,1774.2,1774.0,25.342]
[1743767314822,11.911,1774.4,1774.2,5.6362]
[1743767314991,7.1047,1774.8,1774.2,9.37876547]
[1743767315193,7.1047,1774.8,1774.5,11.2705]
[1743767315437,7.1047,1774.8,1774.5,5.63522]
[1743767315648,7.1047,1774.8,1774.1,4.6422]
[1743767315924,3.88661,1774.3,1774.0,30.9789]
[1743767316120,3.88661,1774.3,1774.0,30.97884]
[1743767316325,2.25463,1774.2,1774.0,25.342]
[1743767316624,2.25466,1774.1,1774.0,25.342]
[1743767318741,2.25479,1774.0,1773.6,5.63807]
[1743767318950,4.50942,1774.1,1773.7,5.6942637]
[1743767319147,2.25453,1774.2,1773.6,0.563807]
[1743767319348,2.25515,1773.8,1773.4,7.68090104]
[1743767319631,2.25543,1773.5,1773.2,30.9884]
[1743767319830,2.25556,1773.4,1773.2,25.349]
[1743767320015,2.25537,1773.6,1773.2,30.98836]
[1743767320194,1.5863,1773.7,1773.4,5.63868]
[1743767320395,1.5863,1773.7,1773.5,5.63844]
[1743767321129,5.46,1773.8,1773.5,5.63842]
[1743767321332,8.0222,1773.9,1773.6,0.0563823]
[1743767321508,6.457,1773.9,1773.7,5.6378]
[1743767321829,8.71194,1773.9,1773.5,7.25226]
[1743767322042,2.25505,1773.8,1773.4,5.63884]
[1743767322246,2.25505,1773.8,1773.4,7.0765236]
[1743767322546,6.457,1773.9,1773.6,5.63813]
[1743767322751,3.81988,1774.1,1773.7,0.05638001]
[1743767322752,8.0062,1774.1,1773.7,0.05638001]
[1743767322917,6.441,1774.1,1773.9,5.63724]
[1743767323107,2.25454,1774.2,1773.9,5.63724]
[1743767323444,2.25455,1774.2,1773.8,5.63761]
[1743767323601,2.25455,1774.2,1773.8,11.27522]
[1743767323801,2.25455,1774.2,1773.8,5.63761]
[1743767324003,2.2547,1774.1,1773.8,5.63761]
[1743767324295,2.25455,1774.2,1773.8,5.63761]
[1743767324500,4.50917,1774.2,1773.7,11.27564]
[1743767324745,2.25469,1774.1,1773.7,12.92842055]
[1743767324949,4.50943,1774.1,1773.7,7.29060055]
[1743767325150,2.25483,1774.0,1773.6,5.6382]
[1743767325355,3.81631,1773.9,1773.5,11.27697]
[1743767325649,3.81631,1773.9,1773.6,5.63823]
[1743767325650,9.27631,1773.9,1773.6,5.63823]
[1743767326351,7.0214,1773.9,1773.7,5.63793]
[1743767326552,5.46,1773.9,1773.8,5.63761]
[1743767327834,5.46,1773.9,1773.7,5.63793]
[1743767328363,1.584,1773.8,1773.5,8.63832]
[1743767328535,1.584,1773.8,1773.5,14.27673]
[1743767328735,1.584,1773.8,1773.6,5.63808]
[1743767329154,1.584,1773.8,1773.5,10.065993]
[1743767329352,1.584,1773.8,1773.6,5.63812]
[1743767330030,1.584,1773.8,1773.5,10.065993]
[1743767330582,5.46,1773.9,1773.8,5.63761]
[1743767330871,3.78453,1774.1,1773.8,1.50179655]
[1743767331028,3.78453,1774.1,1773.7,11.27568]
[1743767331230,1.5298,1774.1,1773.8,5.63748]
[1743767331430,1.5298,1774.1,1773.9,5.63723]
[1743767331639,5.46,1774.5,1774.1,11.27301]
[1743767331863,5.46,1775.1,1774.4,3.74256547]
[1743767332161,5.46,1775.1,1775.0,5.6338]
[1743767332579,5.46,1775.1,1774.8,5.6344]
[1743767332728,5.46,1775.1,1774.8,11.26863]
[1743767332933,5.46,1775.1,1774.9,5.6341]
[1743767333148,5.46,1775.1,1774.9,5.63397]
[1743767333351,5.46,1775.1,1775.0,5.6338]
[1743767333564,5.46,1775.1,1774.9,5.63397]
[1743767336455,5.46,1775.1,1774.9,6.197367]
[1743767339172,5.46,1775.1,1774.7,5.63457]
[1743767339369,1.6619,1775.0,1774.7,11.26921]
[1743767339767,3.91547,1775.0,1774.6,5.63497]
[1743767340069,3.91547,1775.0,1774.7,5.63466]
[1743767340569,3.91547,1775.0,1774.6,5.63487]
[1743767340772,1.6619,1775.0,1774.8,5.63429]
[1743767341075,11.79,1775.1,1774.8,5.63417]
[1743767341236,11.79,1775.1,1774.9,5.63397]
[1743767341567,11.79,1775.1,1775.0,5.6338]
[1743767341734,11.79,1775.1,1774.9,5.63397]
[1743767342241,11.79,1775.1,1775.0,5.6338]
[1743767342642,11.79,1775.1,1774.9,5.63397]
[1743767342849,11.79,1775.1,1774.7,5.63471]
[1743767343069,11.79,1775.1,1774.9,5.63406]
[1743767343276,11.79,1775.1,1774.9,11.26799]
[1743767343440,6.33,1775.1,1774.9,5.63393]
[1743767343645,13.3037,1775.3,1775.0,11.2676]
[1743767344089,13.3037,1775.3,1775.0,5.6338]
[1743767344844,11.775,1775.3,1775.2,5.63316]
[1743767345090,5.46,1775.3,1775.2,5.63316]
[1743767345255,5.46,1775.7,1775.4,5.63241]
[1743767345755,0.12762393,1775.6,1775.4,5.63241]
[1743767345981,2.25275,1775.6,1775.1,11.26682]
[1743767346193,2.25292,1775.5,1775.1,11.26682]
[1743767346402,2.3811807,1775.5,1775.1,12.5061808]
[1743767346609,0.1282607,1775.5,1775.2,5.63304]
[1743767346802,0.1282607,1775.5,1775.4,5.63253]
[1743767347008,7.71263,1775.7,1775.4,5.63253]
[1743767347204,0.1282607,1775.5,1775.4,5.63238]
[1743767347378,5.46,1775.7,1775.4,6.195618]
[1743767347583,0.12927118,1775.6,1775.4,5.63238]
[1743767347777,7.71263,1775.7,1775.3,5.63279]
[1743767347976,0.12865282,1775.5,1775.2,5.63308]
[1743767348202,2.38153282,1775.5,1775.2,5.63308]
[1743767348597,2.38153282,1775.5,1775.2,5.63301]
[1743767348910,0.12865282,1775.5,1775.3,5.6891388]
[1743767349117,0.12865282,1775.5,1775.4,13.94649547]
[1743767349118,2.82e-06,1775.5,1775.4,13.94649547]
[1743767349409,0.05,1775.9,1775.8,10.20266]
[1743767349599,0.05,1775.9,1775.8,14.00152759]
[1743767349600,1e-05,1775.9,1775.8,14.00152759]
[1743767349787,5.46,1776.8,1776.0,1.5714]
[1743767350129,5.46,1776.8,1776.7,5.62841]
[1743767350481,1.6613,1776.9,1776.4,1.6104]
[1743767350737,3.91242,1776.9,1776.5,3.0]
[1743767350936,2.25128,1776.8,1776.4,6.16450655]
[1743767351211,3.79603,1776.6,1776.2,5.62987]
[1743767351418,6.04762,1776.6,1776.2,5.62987]
[1743767352913,2.25153,1776.6,1776.2,6.04787606]
[1743767353231,2.25145,1776.7,1776.3,6.29075027]
[1743767353379,4.50293,1776.7,1776.3,6.29075027]
[1743767353582,2.25149,1776.6,1776.3,6.29075027]
[1743767353832,2.25145,1776.7,1776.3,6.29075027]
[1743767354035,2.25144,1776.7,1776.3,6.29063027]
[1743767354185,2.25144,1776.7,1776.3,6.29058027]
[1743767354383,2.25144,1776.7,1776.4,0.62905803]
[1743767354684,2.25151,1776.6,1776.4,0.62905803]
[1743767355097,2.25144,1776.7,1776.4,0.62905803]
[1743767355620,2.25161,1776.6,1776.3,0.05629266]
[1743767355909,4.50282,1776.7,1776.3,5.68586266]
[1743767356118,2.25152,1776.6,1776.3,5.68586266]
[1743767357385,2.25137,1776.7,1776.3,5.68581266]
[1743767357677,2.25137,1776.7,1776.4,5.62935]
[1743767357880,4.50282,1776.7,1776.3,5.62952]
[1743767358111,4.50282,1776.7,1776.4,0.61923961]
[1743767358422,2.25152,1776.6,1776.4,0.61923961]
[1743767358626,2.25152,1776.6,1776.2,11.67251044]
[1743767358797,11.762,1776.8,1775.8,5.63106]
[1743767358798,2.25204,1776.2,1775.8,5.63106]
[1743767358997,1.5692,1776.7,1775.9,6.04610255]
[1743767359334,5.46,1776.4,1776.2,5.62993]
[1743767359622,5.46,1776.4,1776.3,0.562993]
[1743767359821,5.46,1776.4,1776.2,5.62987]
[1743767360423,5.46,1776.4,1776.2,5.62986]
[1743767361125,5.46,1776.4,1776.3,5.62967]
[1743767361836,5.46,1776.4,1776.2,12.80949]
[1743767362324,5.46,1776.4,1776.3,5.62967]
[1743767362534,5.46,1776.4,1776.3,6.9106]
[1743767362730,5.46,1776.4,1776.3,1.28093]
[1743767362901,2.25162,1776.5,1776.2,6.04767127]
[1743767363500,2.25175,1776.4,1776.1,5.63027]
[1743767364125,2.25175,1776.4,1776.1,3.0]
[1743767364535,2.25175,1776.4,1776.1,8.63028]
[1743767364735,2.25164,1776.5,1776.2,5.62993]
[1743767364902,2.25164,1776.5,1776.2,6.492923]
[1743767365105,2.25164,1776.5,1776.2,6.492843]
[1743767365300,7.0292,1776.7,1776.2,6.492843]
[1743767365301,7.0292,1776.7,1776.4,5.62908]
[1743767365505,7.0292,1776.7,1776.5,5.62894]
[1743767365756,7.0292,1776.7,1776.5,6.76039401]
[1743767366308,9.28057,1776.7,1776.5,1.13145401]
[1743767366506,7.0292,1776.7,1776.4,5.62921]
[1743767366907,5.46,1776.7,1776.5,5.62893]
[1743767367432,5.46,1776.7,1776.5,11.25782]
[1743767367737,5.46,1776.7,1776.5,5.62889]
[1743767368404,5.46,1776.7,1776.4,5.6293]
[1743767368610,5.46,1776.7,1776.4,12.74067892]
[1743767368831,5.46,1776.7,1776.4,12.684391]
[1743767369137,5.46,1776.7,1776.6,5.62872]
[1743767369507,1.5909,1776.9,1776.6,5.62872]
[1743767369708,0.05,1776.9,1776.7,5.62833]
[1743767369909,0.05,1776.9,1776.8,6.190923]
[1743767370536,0.05,1776.9,1776.6,5.62863]
[1743767370946,0.05,1776.9,1776.6,5.62857]
[1743767371269,2.30112,1776.9,1776.6,5.62857]
[1743767372163,0.05,1776.9,1776.6,11.25719]
[1743767372329,0.05,1776.9,1776.6,5.62857]
[1743767372531,0.05,1776.9,1776.7,5.62836]
[1743767373154,0.05,1776.9,1776.8,5.62809]
[1743767373369,0.05,1776.9,1776.8,5.6843706]
[1743767373576,0.05,1776.9,1776.8,7.2249706]
[1743767373730,0.05,1776.9,1776.8,7.22496092]
[1743767373926,0.05,1776.9,1776.8,8.78165048]
[1743767375359,0.05,1776.9,1776.7,5.62828]
[1743767375532,0.05,1776.9,1776.6,36.155297]
[1743767375867,0.05,1776.9,1776.8,11.90437386]
[1743767376372,0.05,1776.9,1776.8,8.62809]
[1743767376842,0.05,1776.9,1776.8,11.96064377]
[1743767377043,0.05,1776.9,1776.8,13.66326124]
[1743767377664,0.05,1776.9,1776.8,15.29416124]
[1743767377851,5.46,1777.5,1777.4,5.62619]
[1743767378058,2.1232,1777.7,1777.5,5.62585]
[1743767378246,2.1232,1777.7,1777.6,38.73644386]
[1743767378247,1e-05,1777.7,1777.6,38.73644386]
[1743767378552,1e-05,1777.7,1777.6,43.80256125]
[1743767379571,1e-05,1777.7,1777.6,40.52627739]
[1743767380178,2.25047,1777.5,1777.0,5.62743]
[1743767380359,2.25057,1777.4,1777.0,5.62743]
[1743767380560,2.25057,1777.4,1777.0,5.62726]
[1743767380762,2.25057,1777.4,1776.9,5.62767]
[1743767380763,1.6373,1777.2,1776.9,5.62767]
[1743767380967,1.6373,1777.2,1776.9,11.25525]
[1743767381150,1.6373,1777.2,1777.0,1.125525]
[1743767381348,1.6373,1777.2,1776.9,5.62758]
[1743767381777,1.6373,1777.2,1776.9,11.25521]
[1743767381950,1.6373,1777.2,1777.0,5.62745]
[1743767382144,7.0973,1777.2,1776.7,5.62839]
[1743767382376,2.25119,1776.9,1776.6,25.313]
[1743767382602,2.25119,1776.9,1776.6,30.94165]
[1743767382603,2.25112,1776.9,1776.6,30.94165]
[1743767382901,1.527,1776.8,1776.6,28.407165]
[1743767383052,3.77824,1776.8,1776.6,25.313]
[1743767384669,2.25136,1776.7,1776.6,25.313]
[1743767385493,1.527,1776.8,1776.6,25.313]
[1743767385660,2.25136,1776.7,1776.2,5.62995]
[1743767385867,1.5024,1776.5,1775.9,25.312]
[1743767386085,5.46,1776.4,1775.9,25.312]
[1743767386292,2.25204,1776.2,1775.9,27.8432]
[1743767386495,8.55012,1776.1,1775.9,27.8432]
[1743767386683,8.55013,1776.1,1775.9,25.312]
[1743767386883,2.25255,1775.8,1775.4,7.16052]
[1743767387086,1.6294,1776.0,1775.5,0.423318]
[1743767387289,3.88169,1776.0,1775.6,5.6317]
[1743767387685,5.46,1776.1,1775.4,5.2573953]
[1743767388009,11.759,1776.3,1776.0,5.63051]
[1743767388198,2.25201,1776.2,1775.8,7.18932]
[1743767388494,2.25201,1776.2,1775.8,7.18917]
[1743767388694,2.25201,1776.2,1775.9,0.05629986]
[1743767388883,2.25201,1776.2,1775.8,11.26218]
[1743767389083,14.01091,1776.3,1775.9,6.757158]
[1743767389473,2.25216,1776.1,1775.7,5.63157]
[1743767389997,2.25228,1776.0,1775.6,15.91764]
[1743767390180,2.25228,1776.0,1775.6,15.91749]
[1743767390375,2.25228,1776.0,1775.7,5.63153]
[1743767391387,4.50462,1776.0,1775.6,8.63168]
[1743767391703,6.299,1775.9,1775.4,5.63239]
[1743767391866,2.25264,1775.7,1775.5,3.0]
[1743767392490,2.25263,1775.7,1775.5,3.0]
[1743767392804,5.46,1775.8,1775.6,5.63177]
[1743767392966,5.46,1775.8,1775.5,5.63198]
[1743767393170,5.46,1775.8,1775.6,5.63189]
[1743767393800,5.46,1775.8,1775.5,6.8147509]
[1743767394099,9.9651,1775.8,1775.5,3.0]
[1743767394274,7.71251,1775.8,1775.5,3.0]
[1743767394602,9.96511,1775.8,1775.5,3.0]
[1743767394791,7.71251,1775.8,1775.5,3.0]
[1743767395102,1.5262,1775.7,1775.4,8.63238]
[1743767395298,1.5262,1775.7,1775.4,9.495598]
[1743767395504,3.77884,1775.7,1775.3,5.63282]
[1743767395800,2.25306,1775.4,1775.2,25.312]
[1743767396380,3.76924,1775.3,1775.2,25.312]
[1743767397911,2.25326,1775.2,1775.1,0.05]
[1743767399304,7.8171,1775.3,1775.1,0.05]
[1743767399483,6.301,1775.3,1775.1,0.05]
[1743767399884,1.6346,1775.5,1775.1,6.25736621]
[1743767400083,1.6346,1775.5,1775.1,11.89073621]
[1743767400084,10.18954,1775.5,1775.1,11.89073621]
[1743767400291,2.2532,1775.3,1775.1,0.62399621]
[1743767400510,7.9366,1775.5,1775.1,5.68326]
[1743767400805,2.25308,1775.4,1775.1,0.05]
[1743767401105,2.25308,1775.4,1775.1,5.68337]
[1743767401311,4.50618,1775.4,1775.1,0.05]
[1743767401700,2.25302,1775.4,1775.1,0.05]
[1743767402009,2.25302,1775.4,1775.1,5.68346]
[1743767402180,2.25302,1775.4,1775.1,0.05]
[1743767402380,4.50611,1775.4,1775.1,0.05]
[1743767402580,7.9366,1775.5,1775.1,0.05]
[1743767402581,2.25323,1775.3,1775.1,0.05]
[1743767402786,10.18948,1775.5,1775.1,5.68335]
[1743767402988,2.25301,1775.4,1775.1,6.25730841]
[1743767403211,2.25301,1775.4,1775.1,0.62396841]
[1743767403381,2.25326,1775.2,1775.1,0.05]
[1743767403783,3.90036,1775.2,1775.1,0.05]
[1743767404002,9.36036,1775.2,1775.1,0.05]
[1743767404609,7.1071,1775.2,1775.1,0.05]
[1743767404809,5.46,1775.2,1775.1,0.05]
[1743767405182,7.71326,1775.2,1775.1,0.05]
[1743767405585,9.28226,1775.2,1775.1,0.05]
[1743767405993,12.83226,1775.2,1775.1,0.05]
[1743767406413,11.26326,1775.2,1775.1,0.05]
[1743767406887,7.71326,1775.2,1775.1,0.05]
[1743767409220,5.46,1775.2,1775.1,0.05]
[1743767409423,7.71326,1775.2,1775.1,0.05]
[1743767409729,14.4425553,1775.2,1775.1,0.05]
[1743767409908,14.9925553,1775.2,1775.1,1e-05]
[1743767411707,7.71326,1775.2,1775.1,1e-05]
[1743767412028,14.01626,1775.2,1775.1,1e-05]
[1743767413201,17.01626,1775.2,1775.1,1e-05]
[1743767413735,21.2955553,1775.2,1775.1,1e-05]
[1743767414401,14.01626,1775.2,1775.1,1e-05]
[1743767415224,5.46,1775.2,1775.1,1e-05]
[1743767415424,6.304,1775.4,1775.2,5.63305]
[1743767415610,2.25305,1775.4,1775.2,1.126652]
[1743767416002,5.46,1775.6,1775.5,5.63221]
[1743767416207,5.46,1775.9,1775.4,5.63234]
[1743767416401,5.46,1775.9,1775.1,1e-05]
[1743767416623,5.46,1775.9,1775.1,3.7293053]